fUSD/lending_fUSD_20241207
["ID","MTS","AMOUNT","RATE_DAILY","PERIOD"]
[344527325,1733536307665,-500.0,0.00010956,2]
[344527326,1733536307676,-500.0,0.00010956,2]
[344527327,1733536307687,-513.82,0.00010956,2]
[344527328,1733536307698,-193.54855272,0.00010956,2]
[344527329,1733536307709,-500.0,0.00010956,2]
[344527330,1733536307720,-904.08,0.00010956,2]
[344527331,1733536307731,-500.0,0.00010956,2]
[344527332,1733536307743,-2971.06,0.00010956,2]
[344527333,1733536307753,-565.45310579,0.00010956,2]
[344527334,1733536307764,-607.67,0.00010956,2]
[344527335,1733536307775,-908.45,0.00010956,2]
[344527336,1733536307786,-500.0,0.00010956,2]
[344527337,1733536307796,-2730.04,0.00010956,2]
[344527338,1733536307807,-601.7,0.00010956,2]
[344527339,1733536307818,-617.54394292,0.00010956,2]
[344527340,1733536307829,-466.17172391,0.00010956,2]
[344527341,1733536307840,-1655.05,0.00010956,2]
[344527342,1733536307849,-1390.17,0.00010956,2]
[344527343,1733536307859,-1410.09,0.00010956,2]
[344527344,1733536307868,-1232.19,0.00010956,2]
[344527345,1733536307880,-668.26,0.00010956,2]
[344527346,1733536307890,-1273.21,0.00010956,2]
[344527347,1733536307899,-500.0,0.00010956,2]
[344527348,1733536307909,-500.0,0.00010956,2]
[344527349,1733536307919,-3636.84,0.00010956,2]
[344527350,1733536307928,-2436.97,0.00010956,2]
[344527351,1733536307938,-500.0,0.00010956,2]
[344527352,1733536307948,-500.0,0.00010957,2]
[344527353,1733536307958,-500.0,0.00010957,2]
[344527354,1733536308897,-500.0,0.00010957,2]
[344527355,1733536308923,-500.0,0.00010957,2]
[344527356,1733536308943,-500.0,0.00010957,2]
[344527357,1733536308967,-500.0,0.00010957,2]
[344527358,1733536308990,-500.0,0.00010957,2]
[344527359,1733536309015,-500.0,0.00010957,2]
[344527360,1733536309025,-1010.16,0.00010957,2]
[344527361,1733536309035,-500.0,0.00010957,2]
[344527362,1733536309045,-500.0,0.00010957,2]
[344527363,1733536309057,-500.0,0.00010957,2]
[344527364,1733536309066,-500.0,0.00010957,2]
[344527365,1733536309076,-500.0,0.00010957,2]
[344527366,1733536309085,-500.0,0.00010957,2]
[344527367,1733536309096,-500.0,0.00010957,2]
[344527368,1733536309107,-605.55,0.00010957,2]
[344527369,1733536309116,-500.0,0.00010957,2]
[344527370,1733536309131,-500.0,0.00010957,2]
[344527371,1733536309140,-500.0,0.00010957,2]
[344527372,1733536309150,-500.0,0.00010957,2]
[344527373,1733536309160,-500.0,0.00010957,2]
[344527374,1733536309169,-500.0,0.00010957,2]
[344527375,1733536309179,-223.76122741,0.00010957,2]
[344527376,1733536309189,-500.0,0.00010957,2]
[344527377,1733536309199,-500.0,0.00010957,2]
[344527378,1733536309209,-582.95986423,0.00010957,2]
[344527379,1733536309218,-500.0,0.00010957,2]
[344527380,1733536309228,-500.0,0.00010957,2]
[344527381,1733536309238,-500.0,0.00010957,2]
[344527382,1733536309247,-500.0,0.00010957,2]
[344527383,1733536309257,-500.27075001,0.00010957,2]
[344527384,1733536309267,-500.0,0.00010957,2]
[344527385,1733536309276,-500.0,0.00010957,2]
[344527386,1733536309285,-500.0,0.00010957,2]
[344527387,1733536309295,-500.0,0.00010957,2]
[344527388,1733536309304,-500.0,0.00010957,2]
[344527389,1733536309313,-500.0,0.00010957,2]
[344527390,1733536309323,-635.28245239,0.00010957,2]
[344527391,1733536309332,-500.0,0.00010957,2]
[344527392,1733536309342,-1189.5,0.00010957,2]
[344527393,1733536309351,-500.0,0.00010957,2]
[344527394,1733536309361,-500.0,0.00010957,2]
[344527395,1733536309370,-500.0,0.00010957,2]
[344527396,1733536309382,-691.44,0.00010957,2]
[344527397,1733536309391,-500.0,0.00010957,2]
[344527398,1733536309400,-593.21,0.00010957,2]
[344527399,1733536309410,-500.0,0.00010957,2]
[344527400,1733536309420,-500.0,0.00010957,2]
[344527401,1733536309429,-500.0,0.00010957,2]
[344527402,1733536309439,-575.21,0.00010957,2]
[344527403,1733536309448,-760.02,0.00010957,2]
[344527404,1733536309458,-997.85,0.00010957,2]
[344527405,1733536309467,-500.0,0.00010957,2]
[344527406,1733536309477,-500.0,0.00010957,2]
[344527407,1733536309486,-569.15,0.00010957,2]
[344527408,1733536309495,-1576.42,0.00010957,2]
[344527409,1733536309504,-968.36,0.00010957,2]
[344527410,1733536309514,-649.06,0.00010957,2]
[344527411,1733536309523,-1164.89,0.00010957,2]
[344527412,1733536309533,-500.0,0.00010957,2]
[344527413,1733536309544,-500.0,0.00010957,2]
[344527414,1733536309553,-500.0,0.00010957,2]
[344527415,1733536309563,-500.0,0.00010957,2]
[344527416,1733536309572,-500.0,0.00010957,2]
[344527417,1733536309582,-500.0,0.00010957,2]
[344527418,1733536309591,-1156.26,0.00010957,2]
[344527419,1733536309601,-500.0,0.00010957,2]
[344527420,1733536309610,-602.11,0.00010957,2]
[344527421,1733536309620,-500.0,0.00010957,2]
[344527422,1733536309632,-500.0,0.00010957,2]
[344527423,1733536309642,-500.0,0.00010957,2]
[344527424,1733536309652,-1076.61,0.00010957,2]
[344527425,1733536309661,-500.0,0.00010957,2]
[344527426,1733536309670,-973.36,0.00010957,2]
[344527427,1733536309680,-500.0,0.00010957,2]
[344527428,1733536309690,-500.0,0.00010957,2]
[344527429,1733536309699,-700.55,0.00010957,2]
[344527430,1733536309709,-667.19,0.00010957,2]
[344527431,1733536309719,-500.0,0.00010957,2]
[344527432,1733536309729,-601.60051077,0.00010957,2]
[344527433,1733536309739,-920.45,0.00010957,2]
[344527434,1733536309749,-500.0,0.00010957,2]
[344527435,1733536309758,-569.83073493,0.00010957,2]
[344527436,1733536309768,-1231.3,0.00010957,2]
[344527437,1733536309777,-901.24,0.00010957,2]
[344527438,1733536309788,-2088.05,0.00010957,2]
[344527439,1733536309797,-600.34,0.00010957,2]
[344527440,1733536309807,-993.78,0.00010957,2]
[344527441,1733536309817,-1450.85,0.00010957,2]
[344527442,1733536309826,-573.52,0.00010957,2]
[344527443,1733536309837,-1382.36,0.00010957,2]
[344527444,1733536309847,-516.23,0.00010957,2]
[344527445,1733536309856,-1010.6,0.00010957,2]
[344527446,1733536309867,-500.0,0.00010957,2]
[344527447,1733536309882,-500.0,0.00010957,2]
[344527448,1733536309891,-1088.16,0.00010957,2]
[344527449,1733536309901,-583.14,0.00010957,2]
[344527450,1733536309911,-500.0,0.00010957,2]
[344527451,1733536309921,-500.0,0.00010957,2]
[344527452,1733536309931,-500.0,0.00010957,2]
[344527453,1733536309940,-500.0,0.00010957,2]
[344527454,1733536309951,-500.0,0.00010957,2]
[344527455,1733536309960,-1163.95,0.00010957,2]
[344527456,1733536309970,-500.0,0.00010957,2]
[344527457,1733536309979,-1200.64,0.00010957,2]
[344527458,1733536309989,-500.0,0.00010957,2]
[344527459,1733536309998,-500.0,0.00010957,2]
[344527460,1733536310008,-758.44,0.00010957,2]
[344527461,1733536310021,-2130.51,0.00010957,2]
[344527462,1733536310031,-639.62,0.00010957,2]
[344527463,1733536310042,-500.0,0.00010957,2]
[344527464,1733536310051,-500.0,0.00010957,2]
[344527465,1733536310062,-500.0,0.00010957,2]
[344527466,1733536310071,-500.0,0.00010957,2]
[344527467,1733536310080,-541.83,0.00010957,2]
[344527468,1733536310089,-500.0,0.00010957,2]
[344527469,1733536310099,-500.0,0.00010957,2]
[344527470,1733536310108,-735.14,0.00010957,2]
[344527471,1733536310117,-500.0,0.00010957,2]
[344527472,1733536310130,-500.0,0.00010957,2]
[344527473,1733536310139,-500.0,0.00010957,2]
[344527474,1733536310148,-1954.45,0.00010957,2]
[344527475,1733536310157,-782.84,0.00010957,2]
[344527476,1733536310167,-500.0,0.00010957,2]
[344527477,1733536310176,-500.0,0.00010957,2]
[344527478,1733536310186,-503.74,0.00010957,2]
[344527479,1733536310196,-2507.35,0.00010957,2]
[344527480,1733536310205,-500.0,0.00010957,2]
[344527481,1733536310218,-500.0,0.00010957,2]
[344527482,1733536310228,-500.0,0.00010957,2]
[344527483,1733536310238,-500.0,0.00010957,2]
[344527484,1733536310247,-500.0,0.00010957,2]
[344527485,1733536310257,-500.0,0.00010957,2]
[344527486,1733536310266,-500.0,0.00010957,2]
[344527487,1733536310275,-1670.54,0.00010957,2]
[344527488,1733536310285,-502.0300824,0.00010957,2]
[344527489,1733536310294,-500.99426208,0.00010957,2]
[344527490,1733536310304,-500.0,0.00010957,2]
[344527491,1733536310313,-3627.1,0.00010957,2]
[344527492,1733536310323,-504.447763,0.00010957,2]
[344527493,1733536310332,-637.28,0.00010957,2]
[344527494,1733536310341,-2426.48,0.00010957,2]
[344527495,1733536310351,-500.0,0.00010957,2]
[344527496,1733536310360,-835.68,0.00010957,2]
[344527497,1733536310369,-503.34650929,0.00010957,2]
[344527498,1733536310383,-505.53258728,0.00010957,2]
[344527499,1733536310392,-512.7828148,0.00010957,2]
[344527500,1733536310402,-500.0,0.00010957,2]
[344527501,1733536310412,-502.65446294,0.00010957,2]
[344527502,1733536310421,-628.51,0.00010957,2]
[344527503,1733536310430,-500.0,0.00010957,2]
[344527504,1733536310439,-553.52,0.00010957,2]
[344527505,1733536310449,-500.0,0.00010957,2]
[344527506,1733536310459,-1240.03,0.00010957,2]
[344527507,1733536310468,-509.09622928,0.00010957,2]
[344527508,1733536310478,-1044.07,0.00010957,2]
[344527509,1733536310488,-1404.78,0.00010957,2]
[344527510,1733536310498,-206.79500993,0.00010957,2]
[344527511,1733536310507,-500.0,0.00010957,2]
[344527512,1733536310517,-1794.48,0.00010957,2]
[344527513,1733536310526,-1613.0,0.00010957,2]
[344527514,1733536310535,-500.0,0.00010957,2]
[344527515,1733536310545,-500.0,0.00010957,2]
[344527516,1733536310554,-762.01,0.00010957,2]
[344527517,1733536310564,-323.94286638,0.00010957,2]
[344527518,1733536310574,-1379.89,0.00010957,2]
[344527519,1733536310583,-1019.21,0.00010957,2]
[344527520,1733536310593,-500.0,0.00010957,2]
[344527521,1733536310602,-1651.01,0.00010957,2]
[344527522,1733536310611,-500.0,0.00010957,2]
[344527523,1733536310620,-744.38,0.00010957,2]
[344527524,1733536310631,-500.0,0.00010957,2]
[344527525,1733536310641,-1915.65,0.00010957,2]
[344527526,1733536310650,-834.64,0.00010957,2]
[344527527,1733536310660,-966.56,0.00010957,2]
[344527528,1733536310669,-500.0,0.00010957,2]
[344527529,1733536310679,-500.0,0.00010957,2]
[344527530,1733536310688,-324.3252361,0.00010957,2]
[344527531,1733536310698,-500.0,0.00010957,2]
[344527532,1733536310707,-500.0,0.00010957,2]
[344527533,1733536310717,-500.0,0.00010957,2]
[344527534,1733536310726,-1214.3,0.00010957,2]
[344527535,1733536310735,-705.76,0.00010957,2]
[344527536,1733536310744,-533.65,0.00010957,2]
[344527537,1733536310754,-500.0,0.00010957,2]
[344527538,1733536310763,-500.0,0.00010957,2]
[344527539,1733536310772,-500.0,0.00010957,2]
[344527540,1733536310782,-500.0,0.00010957,2]
[344527541,1733536310791,-500.0,0.00010957,2]
[344527542,1733536310801,-500.0,0.00010957,2]
[344527543,1733536310811,-1406.31,0.00010957,2]
[344527544,1733536310820,-594.92,0.00010957,2]
[344527545,1733536310830,-500.0,0.00010957,2]
[344527546,1733536310841,-500.0,0.00010957,2]
[344527547,1733536310850,-2050.62,0.00010957,2]
[344527548,1733536310860,-513.53315473,0.00010957,2]
[344527549,1733536310869,-500.28328477,0.00010957,2]
[344527550,1733536310886,-524.61,0.00010957,2]
[344527551,1733536310895,-708.93,0.00010957,2]
[344527552,1733536310905,-1573.14,0.00010957,2]
[344527553,1733536310916,-644.61,0.00010957,2]
[344527554,1733536310926,-828.88,0.00010957,2]
[344527555,1733536310935,-500.23393043,0.00010957,2]
[344527556,1733536310944,-500.0,0.00010957,2]
[344527557,1733536310954,-500.0,0.00010957,2]
[344527558,1733536310964,-500.0,0.00010957,2]
[344527559,1733536310974,-591.34,0.00010957,2]
[344527560,1733536310984,-508.53732672,0.00010957,2]
[344527561,1733536310994,-503.49450948,0.00010957,2]
[344527562,1733536311003,-962.21,0.00010957,2]
[344527563,1733536311014,-500.0,0.00010957,2]
[344527564,1733536311025,-500.0,0.00010957,2]
[344527565,1733536311035,-500.0,0.00010957,2]
[344527566,1733536311044,-500.0,0.00010957,2]
[344527567,1733536311054,-500.0,0.00010957,2]
[344527568,1733536311065,-727.36,0.00010957,2]
[344527569,1733536311075,-500.0,0.00010957,2]
[344527570,1733536311084,-500.0,0.00010957,2]
[344527571,1733536311093,-500.0,0.00010957,2]
[344527572,1733536311103,-1695.75,0.00010957,2]
[344527573,1733536311114,-500.0,0.00010957,2]
[344527574,1733536311128,-500.0,0.00010957,2]
[344527575,1733536311138,-500.0,0.00010957,2]
[344527576,1733536311148,-500.0,0.00010957,2]
[344527577,1733536311157,-500.0,0.00010957,2]
[344527578,1733536311167,-500.0,0.00010957,2]
[344527579,1733536311177,-807.12,0.00010957,2]
[344527580,1733536311192,-500.0,0.00010957,2]
[344527581,1733536311201,-1094.72,0.00010957,2]
[344527582,1733536311211,-500.0,0.00010957,2]
[344527583,1733536311220,-500.0,0.00010957,2]
[344527584,1733536311230,-516.98399795,0.00010957,2]
[344527585,1733536311301,-500.0,0.00010957,2]
[344527586,1733536311311,-1072.02,0.00010957,2]
[344527587,1733536311320,-9961.93,0.00010957,2]
[344527588,1733536311329,-2541.91,0.00010957,2]
[344527589,1733536311339,-1111.7,0.00010957,2]
[344527590,1733536311348,-883.19,0.00010957,2]
[344527591,1733536311358,-654.68,0.00010957,2]
[344527592,1733536311367,-500.0,0.00010957,2]
[344527593,1733536311381,-652.62,0.00010957,2]
[344527594,1733536311391,-897.52,0.00010957,2]
[344527595,1733536311401,-1954.67,0.00010957,2]
[344527596,1733536311410,-1297.46,0.00010957,2]
[344527597,1733536311419,-500.0,0.00010957,2]
[344527598,1733536311428,-2400.98,0.00010957,2]
[344527599,1733536311437,-500.0,0.00010957,2]
[344527600,1733536311446,-1492.09,0.00010957,2]
[344527601,1733536311456,-500.0,0.00010957,2]
[344527602,1733536311465,-1153.18,0.00010957,2]
[344527603,1733536311475,-3028.83,0.00010957,2]
[344527604,1733536311484,-500.0,0.00010957,2]
[344527605,1733536311494,-500.0,0.00010957,2]
[344527606,1733536311503,-500.0,0.00010957,2]
[344527607,1733536311512,-1407.02,0.00010957,2]
[344527608,1733536311521,-620.79,0.00010957,2]
[344527609,1733536311530,-566.85,0.00010957,2]
[344527610,1733536311539,-10531.06,0.00010957,2]
[344527611,1733536311548,-500.0,0.00010957,2]
[344527612,1733536311557,-500.0,0.00010957,2]
[344527613,1733536311566,-500.0,0.00010957,2]
[344527614,1733536311575,-1426.66,0.00010957,2]
[344527615,1733536311584,-2365.74,0.00010957,2]
[344527616,1733536311593,-998.54,0.00010957,2]
[344527617,1733536311602,-500.0,0.00010957,2]
[344527618,1733536311611,-2446.0,0.00010957,2]
[344527619,1733536311620,-500.0,0.00010957,2]
[344527620,1733536311632,-1369.81,0.00010957,2]
[344527621,1733536311641,-934.38,0.00010957,2]
[344527622,1733536311650,-500.0,0.00010957,2]
[344527623,1733536311660,-500.0,0.00010957,2]
[344527624,1733536311669,-500.0,0.00010957,2]
[344527625,1733536311679,-500.0,0.00010957,2]
[344527626,1733536311689,-738.72,0.00010957,2]
[344527627,1733536311698,-500.0,0.00010957,2]
[344527628,1733536311707,-252.16222586,0.00010957,2]
[344527629,1733536311716,-500.0,0.00010957,2]
[344527630,1733536311726,-500.0,0.00010957,2]
[344527631,1733536311735,-1236.15,0.00010957,2]
[344527632,1733536311744,-918.81,0.00010957,2]
[344527633,1733536311754,-1259.46,0.00010957,2]
[344527634,1733536311763,-500.0,0.00010957,2]
[344527635,1733536311773,-961.29,0.00010957,2]
[344527636,1733536311782,-1580.55,0.00010957,2]
[344527637,1733536311791,-500.0,0.00010957,2]
[344527638,1733536311801,-500.0,0.00010957,2]
[344527639,1733536311810,-1658.82,0.00010957,2]
[344527640,1733536311819,-2076.32,0.00010957,2]
[344527641,1733536311829,-500.0,0.00010957,2]
[344527642,1733536311840,-500.0,0.00010957,2]
[344527643,1733536311850,-5834.62,0.00010957,2]
[344527644,1733536311859,-500.0,0.00010957,2]
[344527645,1733536311868,-500.0,0.00010957,2]
[344527646,1733536311887,-726.18,0.00010957,2]
[344527647,1733536311896,-636.56,0.00010957,2]
[344527648,1733536311905,-500.0,0.00010957,2]
[344527649,1733536311914,-151.20329684,0.00010957,2]
[344527650,1733536311926,-500.0,0.00010957,2]
[344527651,1733536311936,-653.92,0.00010957,2]
[344527652,1733536311945,-1262.13,0.00010957,2]
[344527653,1733536311954,-985.05,0.00010957,2]
[344527654,1733536311964,-908.51,0.00010957,2]
[344527655,1733536311974,-869.32,0.00010957,2]
[344527656,1733536311983,-500.0,0.00010957,2]
[344527657,1733536311992,-500.0,0.00010957,2]
[344527658,1733536312002,-433.96685628,0.00010957,2]
[344527659,1733536312013,-500.0,0.00010957,2]
[344527660,1733536312023,-500.0,0.00010958,2]
[344527661,1733536312033,-150.0,0.00010958,2]
[344527662,1733536312042,-265.54570472,0.00010958,2]
[344527663,1733536312051,-500.0,0.00010958,2]
[344527664,1733536312061,-200.07668226,0.00010958,2]
[344527665,1733536312071,-500.0,0.00010958,2]
[344527666,1733536312079,-1449.0,0.00010958,2]
[344527667,1733536312089,-500.0,0.00010958,2]
[344527668,1733536312099,-3618.33,0.00010958,2]
[344527669,1733536312108,-500.0,0.00010958,2]
[344527670,1733536312118,-990.12,0.00010958,2]
[344527671,1733536312131,-500.0,0.00010958,2]
[344527672,1733536312140,-500.0,0.00010958,2]
[344527673,1733536312150,-500.0,0.00010958,2]
[344527674,1733536312160,-1010.91,0.00010958,2]
[344527675,1733536312169,-500.0,0.00010958,2]
[344527676,1733536312179,-1180.33,0.00010958,2]
[344527677,1733536312188,-500.0,0.00010958,2]
[344527678,1733536312198,-637.63,0.00010958,2]
[344527679,1733536312207,-903.24,0.00010958,2]
[344527680,1733536312216,-1081.3,0.00010958,2]
[344527681,1733536312226,-1231.81,0.00010958,2]
[344527682,1733536312235,-372.10216905,0.00010958,2]
[344527683,1733536312245,-1080.58,0.00010958,2]
[344527684,1733536312254,-500.0,0.00010958,2]
[344527685,1733536312263,-2311.91,0.00010958,2]
[344527686,1733536312272,-500.0,0.00010958,2]
[344527687,1733536312282,-1160.55,0.00010958,2]
[344527688,1733536312291,-500.0,0.00010958,2]
[344527689,1733536312300,-553.68,0.00010958,2]
[344527690,1733536312309,-500.0,0.00010958,2]
[344527691,1733536312318,-692.9,0.00010958,2]
[344527692,1733536312327,-500.0,0.00010958,2]
[344527693,1733536312336,-1316.86,0.00010958,2]
[344527694,1733536312345,-945.34,0.00010958,2]
[344527695,1733536312354,-500.0,0.00010958,2]
[344527696,1733536312363,-865.87,0.00010958,2]
[344527697,1733536312372,-500.0,0.00010958,2]
[344527698,1733536312383,-2197.67,0.00010958,2]
[344527699,1733536312393,-1705.69,0.00010958,2]
[344527700,1733536312402,-1267.06,0.00010958,2]
[344527701,1733536312411,-1414.49,0.00010958,2]
[344527702,1733536312420,-1616.63,0.00010958,2]
[344527703,1733536312430,-2472.9,0.00010958,2]
[344527704,1733536312439,-1973.18,0.00010958,2]
[344527705,1733536312448,-1808.78,0.00010958,2]
[344527706,1733536312457,-765.64,0.00010958,2]
[344527707,1733536312467,-1450.65,0.00010958,2]
[344527708,1733536312476,-1036.41,0.00010958,2]
[344527709,1733536312486,-1048.28,0.00010958,2]
[344527710,1733536312496,-1201.84,0.00010958,2]
[344527711,1733536312506,-593.82,0.00010958,2]
[344527712,1733536312515,-500.0,0.00010958,2]
[344527713,1733536312525,-500.0,0.00010958,2]
[344527714,1733536312538,-875.63,0.00010958,2]
[344527715,1733536312548,-863.77,0.00010958,2]
[344527716,1733536312558,-935.91,0.00010958,2]
[344527717,1733536312567,-500.0,0.00010958,2]
[344527718,1733536312576,-1027.36,0.00010958,2]
[344527719,1733536312585,-804.35,0.00010958,2]
[344527720,1733536312595,-1311.72,0.00010958,2]
[344527721,1733536312604,-819.23,0.00010958,2]
[344527722,1733536312614,-1315.73,0.00010958,2]
[344527723,1733536312625,-960.54,0.00010958,2]
[344527724,1733536312640,-1551.33,0.00010958,2]
[344527725,1733536312650,-807.12,0.00010958,2]
[344527726,1733536312659,-200.0,0.00010959,2]
[344527727,1733536312669,-200.0,0.00010959,2]
[344527728,1733536312679,-200.0,0.00010959,2]
[344527729,1733536312689,-200.0,0.00010959,2]
[344527730,1733536312699,-200.0,0.00010959,2]
[344527731,1733536312709,-200.0,0.00010959,2]
[344527732,1733536312718,-8410.29255113,0.00010959,2]
[344527733,1733536312728,-8500.0,0.00010959,2]
[344527734,1733536312738,-8500.0,0.00010959,2]
[344527735,1733536312748,-8500.0,0.00010959,2]
[344527736,1733536312757,-255.0,0.00010959,2]
[344527737,1733536312767,-5612.1,0.00010959,2]
[344527738,1733536312777,-813.53,0.00010959,2]
[344527739,1733536312786,-8500.0,0.00010959,2]
[344527740,1733536312795,-237.64150478,0.00010959,2]
[344527741,1733536312806,-415.73438728,0.00010959,2]
[344527742,1733536312816,-166.34905334,0.00010959,2]
[344527743,1733536312826,-1762.44390139,0.00010968,2]
[344527744,1733536312836,-354.33923528,0.00010973,2]
[344527745,1733536312846,-439.9952788,0.00010993,2]
[344527746,1733536312856,-501.63291091,0.00011021,2]
[344527747,1733536312866,-389.04525488,0.00011027,2]
[344527748,1733536312881,-427.93892509,0.00011032,2]
[344527749,1733536312891,-255.0,0.00011039,2]
[344527750,1733536312901,-439.9952788,0.00011039,2]
[344527751,1733536312910,-3000.0,0.0001106,2]
[344527752,1733536312920,-439.9952788,0.00011085,2]
[344527753,1733536312929,-246430.0,0.000111,2]
[344527754,1733536312938,-166.18357063,0.00011105,2]
[344527755,1733536312947,-439.9952788,0.00011131,2]
[344527756,1733536312957,-150.0,0.00011198,3]
[344527757,1733536312966,-150.0,0.00011198,3]
[344527758,1733536312975,-150.0,0.00011198,2]
[344527759,1733536312985,-150.0,0.00011198,2]
[344527760,1733536312994,-500.62467677,0.00011221,2]
[344527761,1733536313003,-1001.8911469,0.00011221,2]
[344527762,1733536313013,-1002.08188699,0.00011221,2]
[344527763,1733536313024,-500.0,0.00011228,2]
[344527764,1733536313034,-500.0,0.00011228,2]
[344527765,1733536313043,-500.0,0.00011228,2]
[344527766,1733536313053,-500.0,0.00011228,2]
[344527767,1733536313063,-500.0,0.00011228,2]
[344527768,1733536313072,-584.42,0.00011228,2]
[344527769,1733536313082,-500.0,0.00011229,2]
[344527770,1733536313091,-500.0,0.00011229,2]
[344527771,1733536313102,-500.0,0.00011229,2]
[344527772,1733536313111,-1237.14,0.00011229,2]
[344527773,1733536313121,-500.0,0.00011229,2]
[344527774,1733536313137,-500.0,0.00011229,2]
[344527775,1733536313146,-500.0,0.00011229,2]
[344527776,1733536313156,-578.46,0.00011229,2]
[344527777,1733536313165,-500.0,0.00011229,2]
[344527778,1733536313175,-500.0,0.00011229,2]
[344527779,1733536313185,-500.0,0.00011229,2]
[344527780,1733536313195,-286.3029025,0.00011229,2]
[344527781,1733536313204,-1472.55,0.00011229,2]
[344527782,1733536313214,-500.0,0.00011229,2]
[344527783,1733536313223,-500.0,0.00011229,2]
[344527784,1733536313233,-500.0,0.00011229,2]
[344527785,1733536313242,-500.0,0.00011229,2]
[344527786,1733536313252,-500.0,0.00011229,2]
[344527787,1733536313261,-500.0,0.00011229,2]
[344527788,1733536313271,-500.0,0.00011229,2]
[344527789,1733536313280,-500.0,0.00011229,2]
[344527790,1733536313290,-1921.93,0.00011229,2]
[344527791,1733536313299,-6459.48,0.00011229,2]
[344527792,1733536313309,-665.33,0.00011229,2]
[344527793,1733536313318,-2738.63,0.00011229,2]
[344527794,1733536313328,-500.0,0.00011229,2]
[344527795,1733536313337,-2307.66,0.00011229,2]
[344527796,1733536313347,-500.0,0.00011229,2]
[344527797,1733536313357,-500.0,0.00011229,2]
[344527798,1733536313366,-659.29,0.00011229,2]
[344527799,1733536313381,-940.36,0.00011229,2]
[344527800,1733536313391,-500.0,0.00011229,2]
[344527801,1733536313401,-500.0,0.00011229,2]
[344527802,1733536313410,-1443.28,0.00011229,2]
[344527803,1733536313420,-509.51,0.00011229,2]
[344527804,1733536313430,-1435.98,0.00011229,2]
[344527805,1733536313440,-1025.19,0.00011229,2]
[344527806,1733536313449,-500.0,0.00011229,2]
[344527807,1733536313458,-747.69,0.00011229,2]
[344527808,1733536313468,-500.0,0.00011229,2]
[344527809,1733536313477,-500.0,0.00011229,2]
[344527810,1733536313487,-2814.44,0.00011229,2]
[344527811,1733536313496,-7132.51,0.00011229,2]
[344527812,1733536313506,-500.0,0.00011229,2]
[344527813,1733536313515,-500.0,0.00011229,2]
[344527814,1733536313525,-500.0,0.00011229,2]
[344527815,1733536313535,-500.0,0.00011229,2]
[344527816,1733536313544,-2554.24,0.00011229,2]
[344527817,1733536313554,-862.89,0.00011229,2]
[344527818,1733536313564,-500.0,0.00011229,2]
[344527819,1733536313574,-1419.95,0.00011229,2]
[344527820,1733536313584,-500.0,0.00011229,2]
[344527821,1733536313593,-824.51,0.00011229,2]
[344527822,1733536313603,-901.61,0.00011229,2]
[344527823,1733536313613,-1511.62,0.00011229,2]
[344527824,1733536313622,-500.0,0.00011229,2]